Workbook

Sheet Approved Div Splits
A1: Division | B1: Team | C1: Seed Time | D1: Declared Time | E1: TIMES | F1: B/O Times | G1: Gaps | H1: AX Div | I1: Between Divs | J1: Format | K1: Races per Team | L1: Races per Div | M1: Total Races
B2: Norwest Thunderdogs 1 | C2: 16.06 | E2: 16.06 | F2: =+E2-0.5 -> 15.56 | M2: 54
A3: 1 | B3: Unleashed Power | D3: 16.9 | E3: 16.9 | F3: =+E3-0.5 -> 16.4 | G3: =E3-E2 -> 0.84 | H3: =E4-E2 -> 2.24 | J3: 3 RR Best of 5 | K3: 6 | L3: 9
B4: Tsunami Wave Riders | D4: 18.3 | E4: 18.3 | F4: 17.8 | G4: =E4-E3 -> 1.4 | J4: Handicap
B5: Scallywag Scoundrels | C5: 19.461 | E5: 19.461 | F5: 18.961 | G5: 1.161 | I5: 1.161
A6: 2 | B6: Norwest Thunderdogs 5 | D6: 19.5 | E6: 19.5 | F6: 19 | G6: 0.039 | H6: =E8-E5 -> 0.539 | J6: 2 RR Best of 5 | K6: 6 | L6: 12
B7: Unleashed Speed | D7: 19.6 | E7: 19.6 | F7: 19.1 | G7: 0.1 | J7: Regular
B8: Shooting Stars | D8: 20 | E8: 20 | F8: 19.5 | G8: 0.4
B9: Rocky Spuds | D9: 22 | E9: 22 | F9: 21.5 | G9: 2 | I9: 2
A10: 3 | B10: Wrascally Woofers | D10: 22.75 | E10: 22.75 | F10: 22.25 | G10: 0.75 | J10: 2 RR Best of 5
B11: Pawpedoes | D11: 24.9 | E11: 24.9 | F11: 24.4 | G11: 2.15 | H11: =E12-E9 -> 7 | J11: Handicap | K11: 6 | L11: 12
B12: Widdle Woofers | D12: 29 | E12: 29 | F12: 28.5 | G12: 4.1
B13: Thunderdog Stormchasers | D13: 17.2 | E13: 17.2 | F13: 16.7
A14: Open 1 | B14: Scallywag Terrors | D14: 21.7 | E14: 21.7 | F14: 21.2 | G14: =E14-E13 -> 4.5 | J14: 2 RR Best of 5
B15: MAD Flyers | D15: 22.6 | E15: 22.6 | F15: 22.1 | G15: 0.9 | H15: =E16-E13 -> 5.727 | J15: Handicap | K15: 6 | L15: 12
B16: Belconnen Random Bullets | D16: 22.927 | E16: 22.927 | F16: 22.427 | G16: 0.327
B17: Open Ocean | D17: 23.4 | E17: 23.4 | F17: 22.9 | G17: 0.473 | I17: 0.473
A18: Open 2 | B18: The Panzers | D18: 23.6 | E18: 23.6 | F18: 23.1 | G18: 0.2 | H18: =E19-E17 -> 0.4 | J18: 3 RR Best of 5 | K18: 6 | L18: 9
B19: Star Power - SthX | D19: 23.8 | E19: 23.8 | F19: 23.3 | G19: =E19-E18 -> 0.2 | J19: Regular
